bitfinex-derivatives/quotes_SOLF0:USTF0_20241105
["timestamp","ask_amount","ask_price","bid_price","bid_amount"]
[1730814642452,2.1373,163.82,163.79,2.1376]
[1730814644152,54.90958541,163.88,163.79,2.1376]
[1730814644451,2.1371,163.83,163.8,9.65707768]
[1730814644754,2.9,163.82,163.8,9.65707768]
[1730814645451,2.9,163.82,163.8,7.51967768]
[1730814646459,2.9,163.84,163.82,2.1371]
[1730814646844,2.9,163.84,163.81,7.51967768]
[1730814647049,2.1368,163.85,163.81,9.65687768]
[1730814647353,2.9,163.84,163.81,9.65687768]
[1730814647951,2.9,163.84,163.81,7.51967768]
[1730814648150,2.9,163.84,163.83,2.1371]
[1730814649155,2.9,163.84,163.83,9.65677768]
[1730814650354,2.9,163.85,163.83,9.65677768]
[1730814652259,2.9,163.85,163.83,2.1371]
[1730814652761,2.9,163.85,163.81,7.51967768]
[1730814652762,2.1369,163.84,163.81,9.65697768]
[1730814653055,2.9,163.85,163.81,7.51967768]
[1730814654252,5.0368,163.85,163.82,2.1372]
[1730814656053,2.88,163.84,163.82,2.1372]
[1730814658255,2.88,163.84,163.8,7.51967768]
[1730814658455,10.39967768,163.84,163.78,7.51967768]
[1730814658856,2.1371,163.83,163.8,2.1374]
[1730814661256,2.1372,163.82,163.79,2.1375]
[1730814662253,10.39967768,163.84,163.77,4.1898]
[1730814662553,7.51967768,163.81,163.76,2.0079]
[1730814662760,2.88,163.8,163.76,2.0079]
[1730814664261,5.0176,163.8,163.77,2.1378]
[1730814664761,2.1376,163.79,163.76,4.1458]
[1730814665357,2.88,163.8,163.76,2.0079]
[1730814665756,7.51967768,163.79,163.74,35.30930155]
[1730814665959,7.51967768,163.76,163.72,9.65817768]
[1730814666360,10.39967768,163.76,163.71,2.0269]
[1730814666567,7.51967768,163.75,163.71,2.0269]
[1730814667059,5.018,163.76,163.73,2.1383]
[1730814669063,5.018,163.76,163.72,9.65807768]
[1730814672268,2.1385,163.73,163.71,2.0269]
[1730814672967,2.1385,163.73,163.71,9.54657768]
[1730814674970,5.0185,163.72,163.68,2.1389]
[1730814675169,5.0185,163.72,163.68,9.65857768]
[1730814675570,5.0185,163.72,163.69,2.1389]
[1730814677869,2.88,163.72,163.65,4.4155]
[1730814678079,7.51967768,163.69,163.65,4.4155]
[1730814678372,10.39967768,163.68,163.62,7.51967768]
[1730814678561,2.1393,163.66,163.62,7.51967768]
[1730814679063,2.1393,163.66,163.63,2.1396]
[1730814679474,2.1393,163.66,163.64,7.51967768]
[1730814679669,5.0192,163.67,163.64,7.51967768]
[1730814681273,5.0192,163.67,163.64,9.65917768]
[1730814682278,2.1394,163.66,163.62,9.65947768]
[1730814682567,7.51967768,163.66,163.6,7.51967768]
[1730814682966,2.1396,163.64,163.6,9.65967768]
[1730814683268,2.88,163.63,163.6,7.51967768]
[1730814684279,2.88,163.63,163.61,2.1399]
[1730814685274,2.88,163.63,163.62,9.65947768]
[1730814685768,2.9,163.66,163.62,7.51967768]
[1730814685972,2.9,163.66,163.64,7.51967768]
[1730814686172,2.9,163.66,163.64,9.65917768]
[1730814686365,2.9,163.66,163.53,8.9799]
[1730814686568,2.9,163.66,163.63,7.51967768]
[1730814687165,2.9,163.66,163.63,9.65927768]
[1730814688374,2.9,163.66,163.65,2.1394]
[1730814689469,7.51967768,163.69,163.65,2.1394]
[1730814689667,7.51967768,163.69,163.64,7.51967768]
[1730814689867,2.9,163.68,163.67,7.51967768]
[1730814690277,2.9,163.68,163.67,9.65877768]
[1730814691270,2.9,163.69,163.68,2.139]
[1730814692568,2.9,163.69,163.67,7.51967768]
[1730814692773,2.9,163.69,163.67,9.65877768]
[1730814694483,2.9,163.69,163.68,2.1389]
[1730814696684,2.9,163.69,163.67,2.1391]
[1730814697470,2.9,163.69,163.65,2.1145]
[1730814697675,7.51967768,163.66,163.61,58.75802988]
[1730814697891,2.88,163.65,163.61,58.75802988]
[1730814698075,5.0195,163.65,163.61,58.75802988]
[1730814698280,5.0195,163.65,163.62,2.1398]
[1730814700484,5.0195,163.65,163.61,7.51967768]
[1730814700485,2.1395,163.64,163.61,2.1399]
[1730814700685,2.88,163.65,163.61,2.1399]
[1730814701483,5.0195,163.65,163.61,2.1399]
[1730814702386,2.88,163.65,163.63,2.1396]
[1730814706583,2.88,163.65,163.55,9.2796]
[1730814706789,5.0194,163.65,163.62,2.1397]
[1730814707189,2.88,163.65,163.62,2.1397]
[1730814709190,0.3771,163.74,163.64,7.51967768]
[1730814709395,2.1386,163.72,163.66,7.51967768]
[1730814709586,7.51967768,163.71,163.66,7.51967768]
[1730814711287,2.1388,163.7,163.67,2.1391]
[1730814711481,2.88,163.69,163.67,2.1391]
[1730814711686,2.88,163.69,163.66,7.51967768]
[1730814712693,7.51967768,163.67,163.59,2.88]
[1730814712887,7.51967768,163.67,163.61,7.51967768]
[1730814713292,7.51967768,163.66,163.61,7.51967768]
[1730814713489,7.51967768,163.64,163.58,51.24892294]
[1730814713691,2.88,163.64,163.59,7.51967768]
[1730814713886,10.39967768,163.64,163.59,7.51967768]
[1730814714086,2.88,163.64,163.59,17.51967768]
[1730814714591,2.88,163.64,163.61,2.1399]
[1730814724005,5.0196,163.64,163.61,2.1399]
[1730814724600,2.88,163.64,163.61,2.1399]
[1730814726008,2.88,163.64,163.6,7.51967768]
[1730814726805,2.88,163.64,163.62,2.1398]
[1730814729910,0.3491,163.73,163.69,2.1388]
[1730814730117,18.34,163.93,163.72,7.51967768]
[1730814730313,2.0779,163.88,163.76,7.51967768]
[1730814730615,7.51967768,163.83,163.76,7.51967768]
[1730814731008,3.22,163.84,163.73,4.3206]
[1730814731214,7.51967768,163.8,163.74,7.51967768]
[1730814731411,7.51967768,163.8,163.73,4.3206]
[1730814731602,10.73967768,163.8,163.73,11.84027768]
[1730814733504,7.51967768,163.78,163.73,2.1673]
[1730814733711,7.51967768,163.74,163.6,2.1949]
[1730814734014,3.22,163.8,163.64,7.51967768]
[1730814734015,7.51967768,163.7,163.64,7.51967768]
[1730814734314,7.51967768,163.7,163.65,7.51967768]
[1730814734911,7.51967768,163.7,163.65,9.65907768]
[1730814735706,9.65847768,163.7,163.65,7.51967768]
[1730814735914,7.51967768,163.67,163.61,2.2126]
[1730814736109,7.4185218,163.79,163.6,2.075]
[1730814736110,7.51967768,163.65,163.6,2.075]
[1730814736312,7.51967768,163.62,163.59,10.0]
[1730814736713,7.51967768,163.61,163.59,10.0]
[1730814736911,2.1401,163.6,163.59,10.0]
[1730814737414,7.51967768,163.61,163.59,10.0]
[1730814738718,3.48,163.63,163.59,10.0]
[1730814738914,7.51967768,163.62,163.59,10.0]
[1730814739108,7.51967768,163.6,163.59,10.0]
[1730814739418,11.74829398,163.61,163.59,10.0]
[1730814739821,2.1399,163.62,163.59,10.0]
[1730814740118,13.88819398,163.62,163.59,10.0]
[1730814741314,3.48,163.63,163.59,10.0]
[1730814742016,11.74829398,163.62,163.59,10.0]
[1730814742412,3.48,163.63,163.59,10.0]
[1730814744424,3.48,163.62,163.59,10.0]
[1730814744921,3.48,163.63,163.6,2.14]
[1730814745123,11.74829398,163.67,163.59,10.0]
[1730814745325,3.48,163.66,163.59,10.0]
[1730814745823,3.48,163.66,163.59,21.74829398]
[1730814746126,3.48,163.66,163.6,2.116]
[1730814746326,3.48,163.66,163.65,2.1394]
[1730814748320,3.48,163.66,163.61,2.1537]
[1730814748527,5.6194,163.66,163.61,4.2935]
[1730814749114,5.6194,163.66,163.62,2.1398]
[1730814749315,3.48,163.65,163.62,2.1398]
[1730814750724,3.48,163.65,163.63,2.1396]
[1730814752531,2.1392,163.67,163.63,2.1396]
[1730814752830,5.6192,163.67,163.63,2.1396]
[1730814754924,5.6192,163.67,163.61,2.1537]
[1730814754925,11.74829398,163.65,163.61,2.1537]
[1730814755125,11.74829398,163.62,163.59,10.0]
[1730814755330,3.48,163.61,163.59,10.0]
[1730814755522,2.1401,163.6,163.59,10.0]
[1730814755825,3.48,163.61,163.59,10.0]
[1730814756634,2.1401,163.6,163.59,10.0]
[1730814756826,4.3791,163.66,163.59,10.0]
[1730814757135,15.22829398,163.65,163.59,10.0]
[1730814757728,2.1398,163.63,163.59,12.1401]
[1730814757929,2.1398,163.63,163.59,10.0]
[1730814760840,2.1398,163.63,163.59,12.1402]
[1730814761333,2.1396,163.64,163.6,2.1401]
[1730814763550,15.22829398,163.65,163.59,10.0]
[1730814763832,11.74829398,163.6,163.59,10.0]
[1730814764040,5.6201,163.6,163.59,10.0]
[1730814764934,17.36839398,163.6,163.59,10.0]
[1730814765533,17.36839398,163.6,163.59,3.577]
[1730814767938,5.6201,163.6,163.59,3.577]
[1730814768835,17.36839398,163.6,163.59,3.577]
[1730814769332,5.6201,163.6,163.59,3.577]
[1730814777343,13.13945645,163.6,163.59,3.577]
[1730814780746,5.6201,163.6,163.59,3.577]
[1730814780936,13.13945645,163.6,163.59,3.577]
[1730814783336,13.15945645,163.6,163.59,3.577]
[1730814785936,59.31911948,163.69,163.59,3.577]
[1730814785937,9.65925645,163.62,163.59,3.577]
[1730814786137,7.51935645,163.62,163.59,3.577]
[1730814786344,3.5,163.61,163.59,3.577]
[1730814786540,11.01935645,163.62,163.59,3.577]
[1730814786732,3.5,163.62,163.6,2.0665]
[1730814787132,7.51935645,163.64,163.6,4.2065]
[1730814787335,3.5,163.63,163.6,4.2065]
[1730814787739,9.65885645,163.65,163.6,4.2065]
[1730814788040,3.5,163.64,163.6,4.2065]
[1730814788843,3.5,163.65,163.62,2.1397]
[1730814789343,2.1391,163.68,163.63,2.1396]
[1730814789533,11.01935645,163.67,163.63,2.1396]
[1730814790343,7.51935645,163.66,163.63,2.1396]
[1730814792947,7.51935645,163.66,163.6,9.58585645]
[1730814793441,11.01935645,163.67,163.6,9.58585645]
[1730814795250,11.01935645,163.67,163.63,2.1396]
[1730814795553,7.51935645,163.65,163.6,2.0665]
[1730814796445,7.51935645,163.64,163.6,2.0665]
[1730814796844,9.65875645,163.65,163.61,2.1398]
[1730814799249,9.65875645,163.65,163.62,2.1398]
[1730814799945,7.51935645,163.65,163.62,2.1398]
[1730814800543,10.93935645,163.65,163.62,2.1398]
[1730814801345,3.42,163.65,163.63,2.1395]
[1730814801542,3.42,163.65,163.6,9.58585645]
[1730814802751,3.42,163.65,163.63,2.1396]
[1730814803254,2.1387,163.71,163.66,2.1392]
[1730814803559,7.51935645,163.7,163.66,2.1392]
[1730814803758,7.51935645,163.7,163.67,2.0526]
[1730814804251,9.65815645,163.7,163.67,2.0526]
[1730814804850,7.51935645,163.7,163.67,2.0526]
[1730814805655,7.51935645,163.7,163.67,4.1917]
[1730814806057,7.51935645,163.7,163.67,2.0526]
[1730814807643,7.51935645,163.7,163.67,4.1917]
[1730814808249,7.3338218,163.79,163.67,2.0526]
[1730814808456,7.51935645,163.72,163.68,2.1389]
[1730814808953,9.65785645,163.72,163.68,2.1389]
[1730814809551,7.51935645,163.72,163.68,2.1389]
[1730814809755,7.51935645,163.72,163.69,2.1388]
[1730814812351,10.93935645,163.73,163.69,2.1388]
[1730814812552,7.51935645,163.75,163.69,7.51935645]
[1730814813652,7.51935645,163.77,163.74,2.1382]
[1730814813949,10.93935645,163.78,163.72,7.51935645]
[1730814814253,3.42,163.78,163.75,2.1381]
[1730814814452,3.42,163.78,163.76,2.1328]
[1730814814659,7.51935645,163.82,163.76,2.1328]
[1730814814853,10.93935645,163.82,163.76,2.1328]
[1730814815647,3.42,163.83,163.77,7.51935645]
[1730814815951,3.42,163.83,163.78,7.51935645]
[1730814816557,3.42,163.83,163.8,2.1373]
[1730814816766,3.42,163.83,163.78,7.51935645]
[1730814816949,3.42,163.83,163.79,2.0815]
[1730814817154,3.42,163.83,163.8,2.1374]
[1730814817458,3.42,163.83,163.79,2.0815]
[1730814817959,3.42,163.83,163.81,2.1373]
[1730814818259,48.81612295,163.86,163.8,9.66135645]
[1730814818455,45.39612295,163.86,163.82,2.1372]
[1730814818664,7.51935645,163.86,163.81,7.51935645]
[1730814820059,7.51935645,163.86,163.82,2.1372]
[1730814820661,9.65615645,163.86,163.81,2.1372]
[1730814821160,2.1368,163.86,163.81,2.1372]
[1730814821556,2.1368,163.86,163.81,9.65655645]
[1730814821758,9.65595645,163.87,163.82,2.1371]
[1730814822464,0.50063,163.92,163.8,2.142]
[1730814822465,7.51935645,163.9,163.86,2.1366]
[1730814823371,10.15588645,163.92,163.87,2.1365]
[1730814823568,13.57588645,163.92,163.87,2.1365]
[1730814823868,3.92063,163.92,163.86,7.51935645]
[1730814824164,9.65535645,163.91,163.86,9.65595645]
[1730814825056,7.51935645,163.91,163.86,9.65595645]
[1730814825261,7.51935645,163.91,163.87,2.1365]
[1730814827465,0.50063,163.92,163.89,7.51935645]
[1730814827667,0.50063,163.92,163.88,7.51935645]
[1730814827874,0.50063,163.92,163.89,2.1362]
[1730814829173,7.51935645,163.93,163.89,2.1362]
[1730814829559,3.38,163.95,163.88,7.51935645]
[1730814829759,7.51935645,163.94,163.9,2.136]
[1730814830960,7.51935645,163.94,163.87,2.0178]
[1730814830961,7.51935645,163.94,163.89,7.51935645]
[1730814831165,10.89935645,163.95,163.91,2.1359]
[1730814831660,7.51935645,163.93,163.87,2.0178]
[1730814831865,7.51935645,163.92,163.87,2.0178]
[1730814832271,7.51935645,163.92,163.87,9.53715645]
[1730814832565,7.51935645,163.92,163.87,2.0178]
[1730814832764,7.51935645,163.91,163.87,2.0178]
[1730814833363,7.51935645,163.88,163.86,3.577]
[1730814833763,2.1365,163.87,163.86,3.577]
[1730814834764,7.51935645,163.88,163.86,3.577]
[1730814834765,9.65575645,163.88,163.86,3.577]
[1730814835272,2.1364,163.88,163.86,3.577]
[1730814835673,3.38,163.9,163.86,3.577]
[1730814835874,2.1363,163.89,163.86,3.577]
[1730814839477,3.38,163.9,163.86,3.577]
[1730814839478,5.5162,163.9,163.86,5.7137]
[1730814839984,3.38,163.9,163.86,3.577]
[1730814840179,3.38,163.9,163.87,2.1365]
[1730814840380,11.72081023,163.93,163.87,2.1365]
[1730814840682,2.1364,163.89,163.86,3.577]
[1730814841780,5.5162,163.9,163.86,3.577]
[1730814841981,3.38,163.9,163.86,3.577]
[1730814842175,3.38,163.9,163.86,5.7136]
[1730814842373,5.5162,163.9,163.86,3.577]
[1730814842573,3.38,163.9,163.86,3.577]
[1730814842982,2.1363,163.89,163.86,3.577]
[1730814843185,3.38,163.9,163.86,3.577]
[1730814843482,2.1363,163.89,163.86,3.577]
[1730814843687,3.38,163.9,163.86,3.577]
[1730814844278,2.1363,163.89,163.86,3.577]
[1730814844485,3.38,163.9,163.86,3.577]
[1730814844685,11.72081023,163.89,163.86,3.577]
[1730814844893,2.1365,163.87,163.86,3.577]
[1730814845586,11.72081023,163.89,163.86,3.577]
[1730814845787,3.38,163.9,163.86,3.577]
[1730814846201,2.1365,163.88,163.86,3.577]
[1730814850002,3.38,163.9,163.86,3.577]
[1730814850207,2.1364,163.89,163.86,3.577]
[1730814851205,3.38,163.9,163.86,3.577]
[1730814851407,2.1364,163.88,163.86,3.577]
[1730814854307,3.38,163.9,163.86,3.577]
[1730814854616,2.1363,163.89,163.86,3.577]
[1730814855608,3.38,163.9,163.86,5.7136]
[1730814855913,3.38,163.9,163.86,3.577]
[1730814856214,5.5162,163.9,163.86,3.577]
[1730814857308,13.01628508,163.9,163.86,3.577]
[1730814859209,9.63658508,163.87,163.86,3.577]
[1730814860305,7.50008508,163.89,163.86,3.577]
[1730814860511,10.88008508,163.9,163.86,3.577]
[1730814861209,7.50008508,163.89,163.86,3.577]
[1730814861719,3.28,163.88,163.86,3.577]
[1730814862415,5.4164,163.88,163.86,3.577]
[1730814865414,7.50008508,163.87,163.86,3.577]
[1730814865616,7.50008508,163.87,163.73,4.0449]
[1730814865817,7.50008508,163.78,163.73,4.0449]
[1730814866018,3.28,163.77,163.73,4.0449]
[1730814866723,9.63778508,163.78,163.73,4.0449]
[1730814866921,3.28,163.76,163.73,4.0449]
[1730814867317,3.28,163.76,163.73,2.028]
[1730814867318,10.78008508,163.76,163.73,2.028]
[1730814868426,12.91808508,163.76,163.7,9.63878508]
[1730814868724,12.91808508,163.76,163.7,11.82608508]
[1730814870020,10.78008508,163.76,163.7,11.82608508]
[1730814870323,2.1383,163.74,163.7,9.68738508]
[1730814870918,2.1381,163.75,163.7,11.82598508]
[1730814871714,2.1381,163.75,163.71,2.1386]
[1730814871918,2.1382,163.74,163.7,9.68738508]
[1730814872325,10.78008508,163.76,163.7,9.68738508]
[1730814873228,2.1382,163.75,163.71,2.1386]
[1730814873426,3.28,163.74,163.71,2.1386]
[1730814874124,7.50008508,163.77,163.71,7.50008508]
[1730814874317,1.0,163.86,163.7,2.1873]
[1730814874318,3.28,163.76,163.73,7.50008508]
[1730814875025,5.418,163.76,163.73,9.63838508]
[1730814875415,5.418,163.76,163.73,7.50008508]
[1730814875819,3.28,163.75,163.73,7.50008508]
[1730814876426,3.28,163.75,163.73,9.63838508]
[1730814879127,7.50008508,163.79,163.73,7.50008508]
[1730814879324,3.28,163.78,163.74,7.50008508]
[1730814879829,3.28,163.78,163.75,2.138]
[1730814880429,3.28,163.78,163.74,7.50008508]
[1730814880625,3.28,163.77,163.74,7.50008508]
[1730814881329,3.28,163.77,163.75,2.138]
[1730814881928,7.50008508,163.81,163.76,9.63788508]
[1730814882229,3.28,163.8,163.77,9.51088508]
[1730814882531,3.28,163.79,163.78,2.1377]
[1730814882730,3.28,163.8,163.77,9.51088508]
[1730814883627,3.28,163.8,163.77,2.0108]
[1730814884535,3.28,163.8,163.78,2.1376]
[1730814886527,3.28,163.8,163.72,2.1285]
[1730814886528,2.1377,163.78,163.75,2.1381]
[1730814890034,5.4177,163.78,163.76,2.138]
[1730814891137,3.28,163.78,163.76,2.138]
[1730814897134,3.28,163.78,163.73,9.65468508]
[1730814897334,5.4178,163.78,163.75,2.1381]
[1730814897535,12.91788508,163.78,163.75,2.1381]
[1730814897936,7.50008508,163.77,163.73,2.1546]
[1730814898136,7.50008508,163.77,163.74,2.1382]
[1730814899041,9.63798508,163.77,163.75,2.1381]
[1730814899740,7.50008508,163.77,163.75,2.1381]
[1730814901337,7.50008508,163.77,163.74,2.1381]
[1730814902536,12.91788508,163.78,163.75,2.1381]
[1730814903246,9.63788508,163.78,163.75,2.1381]
[1730814903544,3.28,163.77,163.75,2.1381]
[1730814904340,3.28,163.77,163.73,2.1546]
[1730814904651,3.28,163.8,163.75,7.50008508]
[1730814904835,7.50008508,163.82,163.75,7.50008508]
[1730814905040,3.28,163.81,163.78,2.1376]
[1730814905443,3.28,163.81,163.79,2.1376]
[1730814907354,3.28,163.81,163.76,7.50008508]
[1730814907545,3.28,163.81,163.78,2.1377]
[1730814907852,10.78008508,163.81,163.78,2.1377]
[1730814908149,9.63778508,163.79,163.75,2.138]
[1730814908349,7.50008508,163.78,163.73,2.1546]
[1730814908543,3.28,163.77,163.73,2.1546]
[1730814909246,5.4179,163.77,163.74,2.1382]
[1730814909542,3.28,163.77,163.74,7.50008508]
[1730814910149,3.28,163.77,163.76,2.138]
[1730814910548,3.28,163.79,163.75,7.50008508]
[1730814910744,3.28,163.79,163.78,2.1376]
[1730814910947,3.28,163.79,163.74,7.50008508]
[1730814911248,7.50008508,163.78,163.73,2.1546]
[1730814911445,9.63788508,163.78,163.75,2.138]
[1730814912350,2.1379,163.77,163.74,2.1382]
[1730814912746,2.1379,163.77,163.73,2.1546]
[1730814913148,7.50008508,163.78,163.73,2.1546]
[1730814913346,7.50008508,163.78,163.75,2.1381]
[1730814913347,9.63788508,163.78,163.75,2.1381]
[1730814914152,2.1378,163.77,163.74,2.1382]
[1730814914651,2.1378,163.77,163.73,2.1546]
[1730814914652,2.1381,163.76,163.73,4.2929]
[1730814914851,7.50008508,163.76,163.73,2.1383]
[1730814915155,2.1381,163.75,163.72,2.1384]
[1730814915363,5.4181,163.75,163.72,2.1384]
[1730814915651,5.4181,163.75,163.73,2.1384]
[1730814915846,3.28,163.75,163.73,2.1384]
[1730814916654,2.1385,163.73,163.7,2.1387]
[1730814916846,9.63858508,163.73,163.7,2.1387]
[1730814917242,7.50008508,163.72,163.68,58.71569504]
[1730814917446,7.50008508,163.72,163.68,51.21560996]
[1730814917656,3.2,163.71,163.68,51.21560996]
[1730814918362,3.2,163.71,163.69,2.1389]
[1730814920153,3.2,163.71,163.7,2.1388]
[1730814920847,3.2,163.71,163.68,7.50008508]
[1730814921152,3.2,163.71,163.69,2.1389]
[1730814922050,7.50008508,163.7,163.67,3.7018]
[1730814922454,9.63888508,163.7,163.67,3.7018]
[1730814922647,3.2,163.71,163.68,2.139]
[1730814923862,7.50008508,163.72,163.68,2.139]
[1730814924148,3.2,163.71,163.68,2.139]
[1730814924348,3.2,163.71,163.67,9.06278508]
[1730814924555,3.2,163.71,163.69,2.1388]
[1730814925054,3.2,163.71,163.67,9.06278508]
[1730814925754,5.3386,163.71,163.68,2.1389]
[1730814929261,3.2,163.71,163.67,9.06278508]
[1730814929449,3.2,163.72,163.68,7.50008508]
[1730814929654,3.2,163.72,163.67,9.06278508]
[1730814929955,2.1386,163.71,163.68,2.1389]
[1730814931758,10.70008508,163.72,163.69,2.1388]
[1730814931958,10.70008508,163.72,163.67,9.06278508]
[1730814932458,10.70008508,163.72,163.7,2.1387]
[1730814932658,3.2,163.72,163.7,2.1387]
[1730814935161,7.50008508,163.73,163.7,2.1387]
[1730814935362,3.2,163.72,163.7,2.1387]
[1730814935956,3.2,163.73,163.7,7.50008508]
[1730814936568,3.2,163.73,163.72,2.1385]
[1730814936765,10.70008508,163.73,163.67,1.5627]
[1730814936962,10.70008508,163.73,163.67,9.06278508]
[1730814938353,12.83848508,163.73,163.7,2.1387]
[1730814938754,10.70008508,163.73,163.67,9.06278508]
[1730814938966,2.1385,163.72,163.69,2.1388]
[1730814939465,7.50008508,163.7,163.67,1.5627]
[1730814940167,9.63888508,163.7,163.68,2.139]
[1730814940567,3.2,163.7,163.68,2.139]
[1730814940768,3.2,163.7,163.68,2.1389]
[1730814940967,3.2,163.7,163.67,9.06278508]
[1730814941163,3.2,163.7,163.68,7.50008508]
[1730814941571,7.50008508,163.73,163.68,7.50008508]
[1730814941772,3.2,163.72,163.68,7.50008508]
[1730814942071,5.3385,163.72,163.69,2.1388]
[1730814942367,10.70008508,163.72,163.67,9.06278508]
[1730814944281,2.1387,163.71,163.68,2.1389]
[1730814945367,3.2,163.72,163.7,2.1387]
[1730814949277,12.83868508,163.72,163.68,2.1389]
[1730814950083,12.83868508,163.72,163.69,2.1389]
[1730814950579,12.83868508,163.72,163.67,1.5627]
[1730814950981,12.83868508,163.72,163.68,2.1389]
[1730814951386,2.1387,163.71,163.67,3.7018]
[1730814951678,7.50008508,163.7,163.67,1.5627]
[1730814951885,10.70008508,163.72,163.67,1.5627]
[1730814952091,12.83868508,163.72,163.68,2.139]
[1730814952278,12.83868508,163.72,163.67,1.5627]
[1730814952584,10.70008508,163.72,163.67,1.5627]
[1730814953086,10.70008508,163.72,163.69,2.1388]
[1730814953386,12.83858508,163.72,163.67,1.5627]
[1730814954079,9.63858508,163.72,163.67,1.5627]
[1730814954279,3.1,163.71,163.69,2.1388]
[1730814956289,2.1385,163.72,163.69,2.1388]
[1730814956480,5.2385,163.72,163.69,2.1388]
[1730814956979,5.2385,163.72,163.69,202.1388]
[1730814957181,3.1,163.72,163.7,2.1387]
[1730814960390,3.1,163.72,163.69,202.1388]
[1730814968992,9.63878508,163.71,163.69,200.0]
[1730814969686,3.1,163.7,163.69,200.0]
[1730814970298,10.60008508,163.7,163.69,200.0]
[1730814973195,12.73888508,163.7,163.69,200.0]
[1730814973600,12.73888508,163.7,163.69,132.87986253]
[1730814974190,12.73888508,163.7,163.69,131.24636253]
[1730814976399,12.73888508,163.7,163.69,65.76312506]
[1730814979293,12.73888508,163.7,163.69,0.27988759]
[1730814982395,12.73888508,163.7,163.62,2.1398]
[1730814982396,2.1393,163.67,163.62,2.1398]
[1730814982696,10.54008508,163.66,163.62,2.1398]
[1730814983504,12.67938508,163.66,163.62,2.1398]
[1730814984303,3.04,163.65,163.62,2.1398]
[1730814985501,3.04,163.65,163.61,1.6046]
[1730814985713,5.1795,163.65,163.61,3.7445]
[1730814987004,7.50008508,163.65,163.61,1.6046]
[1730814987310,7.50008508,163.63,163.58,3.0683]
[1730814987605,3.04,163.62,163.58,3.0683]
[1730814988109,3.04,163.62,163.59,2.1402]
[1730814988906,3.04,163.62,163.59,7.50008508]
[1730814989101,3.04,163.62,163.61,2.1399]
[1730814993713,3.04,163.62,163.6,2.14]
[1730814995705,3.04,163.62,163.59,9.02838508]
[1730814995910,3.04,163.62,163.54,51.26288241]
[1730814995911,2.1399,163.61,163.54,51.26288241]
[1730814996125,9.63998508,163.61,163.56,7.50008508]
[1730814996318,7.50008508,163.59,163.55,6.9457]
[1730814996514,3.04,163.58,163.55,4.8051]
[1730814996922,3.04,163.58,163.56,2.1406]
[1730814998519,2.1399,163.62,163.59,2.1402]
[1730814998719,3.04,163.61,163.56,7.50008508]
[1730814999524,12.68008508,163.61,163.58,2.1403]
[1730814999716,7.50008508,163.59,163.54,51.26288241]
[1730815000220,2.1404,163.58,163.55,2.1407]
[1730815004918,2.1404,163.58,163.56,2.1406]
[1730815009034,4.2782,163.68,163.56,7.50008508]
[1730815009231,7.50008508,163.62,163.56,7.50008508]
[1730815009430,4.2782,163.68,163.54,54.30728241]
[1730815009431,10.46008508,163.61,163.54,61.80736749]
[1730815009830,10.46008508,163.61,163.56,2.1405]
[1730815009831,7.50008508,163.59,163.56,2.1405]
[1730815011723,2.96,163.58,163.56,2.1405]
[1730815013419,2.96,163.58,163.57,2.1405]
[1730815018040,2.1397,163.63,163.6,2.14]
[1730815018231,10.46008508,163.62,163.54,54.30728241]
[1730815018639,7.50008508,163.61,163.56,7.50008508]
[1730815019931,7.50008508,163.59,163.57,2.1404]
[1730815020132,2.96,163.58,163.57,2.1404]
[1730815020640,2.96,163.58,163.56,2.1405]